[Event "Early-Titled-Tuesday-Blitz-January-23-2024"]
[Site "Chess.com"]
[Date "2024.01.23"]
[Round "1"]
[White "tigurones"]
[Black "TregubovP"]
[Result "1/2-1/2"]
[WhiteElo "2379"]
[BlackElo "2672"]
[TimeControl "180+1"]
[EndTime "8:06:11 PST"]
[Termination "Game drawn by repetition"]

1. d4 {[%clk 0:03:00.9]} 1... Nf6 {[%clk 0:02:59.5]} 2. Nf3 {[%clk 0:03:00.6]}
2... e6 {[%clk 0:02:58.8]} 3. c4 {[%clk 0:02:59.9]} 3... Bb4+ {[%clk 0:02:58]}
4. Bd2 {[%clk 0:02:58.7]} 4... Qe7 {[%clk 0:02:58]} 5. g3 {[%clk 0:02:57.9]}
5... Bxd2+ {[%clk 0:02:57.9]} 6. Nbxd2 {[%clk 0:02:57.5]} 6... d6 {[%clk
0:02:57.1]} 7. Bg2 {[%clk 0:02:51.1]} 7... e5 {[%clk 0:02:57.5]} 8. O-O {[%clk
0:02:48.6]} 8... O-O {[%clk 0:02:57]} 9. e4 {[%clk 0:02:45.7]} 9... a5 {[%clk
0:02:50.1]} 10. Re1 {[%clk 0:02:42.2]} 10... Nbd7 {[%clk 0:02:49.7]} 11. Qc2
{[%clk 0:02:33.9]} 11... Re8 {[%clk 0:02:48.9]} 12. Rac1 {[%clk 0:02:27.8]}
12... exd4 {[%clk 0:02:38.7]} 13. Nxd4 {[%clk 0:02:27.4]} 13... Nc5 {[%clk
0:02:39.3]} 14. N4b3 {[%clk 0:02:22.8]} 14... Nfd7 {[%clk 0:02:22.7]} 15. Nxc5
{[%clk 0:02:19.2]} 15... Nxc5 {[%clk 0:02:22.3]} 16. Nb3 {[%clk 0:02:19.7]}
16... Ne6 {[%clk 0:02:10]} 17. c5 {[%clk 0:02:11.6]} 17... a4 {[%clk 0:02:09.7]}
18. Nd2 {[%clk 0:02:05.2]} 18... Nxc5 {[%clk 0:02:09.1]} 19. e5 {[%clk
0:02:05.8]} 19... Be6 {[%clk 0:02:05.7]} 20. exd6 {[%clk 0:02:02.9]} 20... cxd6
{[%clk 0:02:05.9]} 21. Bd5 {[%clk 0:01:56.1]} 21... Qf6 {[%clk 0:01:56.8]} 22.
Ne4 {[%clk 0:01:47.1]} 22... Nxe4 {[%clk 0:01:51.7]} 23. Bxe4 {[%clk 0:01:46.6]}
23... g6 {[%clk 0:01:50.3]} 24. Bxb7 {[%clk 0:01:45]} 24... Rab8 {[%clk
0:01:47.7]} 25. Qxa4 {[%clk 0:01:36.8]} 25... Qxb2 {[%clk 0:01:38.9]} 26. Bd5
{[%clk 0:01:33.3]} 26... Qb4 {[%clk 0:01:19.2]} 27. Qxb4 {[%clk 0:01:31.1]}
27... Rxb4 {[%clk 0:01:19.3]} 28. Bxe6 {[%clk 0:01:31.4]} 28... Rxe6 {[%clk
0:01:18.9]} 29. Rxe6 {[%clk 0:01:27.8]} 29... fxe6 {[%clk 0:01:19.2]} 30. Rc6
{[%clk 0:01:28.4]} 30... Rd4 {[%clk 0:01:17.7]} 31. a4 {[%clk 0:01:25.7]} 31...
Kf7 {[%clk 0:01:12.1]} 32. a5 {[%clk 0:01:24.1]} 32... Ra4 {[%clk 0:01:07.9]}
33. Rxd6 {[%clk 0:01:16.1]} 33... Rxa5 {[%clk 0:01:08]} 34. Rd7+ {[%clk
0:01:16.7]} 34... Kg8 {[%clk 0:01:08.3]} 35. Kg2 {[%clk 0:01:17.4]} 35... Rf5
{[%clk 0:01:07.6]} 36. f4 {[%clk 0:01:15.4]} 36... e5 {[%clk 0:01:06.2]} 37.
Rd8+ {[%clk 0:01:13.7]} 37... Kg7 {[%clk 0:01:06]} 38. Rd7+ {[%clk 0:01:13.4]}
38... Kg8 {[%clk 0:01:06.1]} 39. Rd5 {[%clk 0:00:59.6]} 39... exf4 {[%clk
0:00:56.6]} 40. Rxf5 {[%clk 0:00:59.5]} 40... gxf5 {[%clk 0:00:56.8]} 41. gxf4
{[%clk 0:01:00.4]} 41... Kf7 {[%clk 0:00:57.1]} 42. Kf3 {[%clk 0:01:00.2]} 42...
Ke6 {[%clk 0:00:56.5]} 43. Ke3 {[%clk 0:00:59.9]} 43... Kd5 {[%clk 0:00:55.1]}
44. Kd3 {[%clk 0:01:00.2]} 44... h6 {[%clk 0:00:54.9]} 45. h3 {[%clk 0:01:00.2]}
45... h5 {[%clk 0:00:54.6]} 46. h4 {[%clk 0:01:00.6]} 46... Kc5 {[%clk
0:00:54.8]} 47. Kc3 {[%clk 0:01:01]} 47... Kd5 {[%clk 0:00:55.1]} 48. Kd3 {[%clk
0:01:01.6]} 48... Kc5 {[%clk 0:00:55.4]} 49. Kc3 {[%clk 0:01:02.2]} 49... Kd5
{[%clk 0:00:55.8]} 50. Kd3 {[%clk 0:01:02.9]} 1/2-1/2

[Event "Early-Titled-Tuesday-Blitz-January-23-2024"]
[Site "Chess.com"]
[Date "2024.01.23"]
[Round "1"]
[White "artin10862"]
[Black "Cheer_Down"]
[Result "1-0"]
[WhiteElo "2822"]
[BlackElo "2450"]
[TimeControl "180+1"]
[EndTime "8:06:12 PST"]
[Termination "artin10862 won by resignation"]

1. e4 {[%clk 0:03:00.9]} 1... c5 {[%clk 0:02:51.2]} 2. Nf3 {[%clk 0:02:58.6]}
2... d6 {[%clk 0:02:50.9]} 3. d4 {[%clk 0:02:57.2]} 3... cxd4 {[%clk 0:02:51.1]}
4. Nxd4 {[%clk 0:02:58.1]} 4... Nf6 {[%clk 0:02:51.4]} 5. Nc3 {[%clk 0:02:58.5]}
5... a6 {[%clk 0:02:51.7]} 6. Be3 {[%clk 0:02:57]} 6... e5 {[%clk 0:02:50]} 7.
Nb3 {[%clk 0:02:55.6]} 7... Be6 {[%clk 0:02:40.3]} 8. f3 {[%clk 0:02:47]} 8...
h5 {[%clk 0:02:39.1]} 9. Qd2 {[%clk 0:02:43.2]} 9... Nbd7 {[%clk 0:02:28.6]} 10.
O-O-O {[%clk 0:02:41.5]} 10... Be7 {[%clk 0:02:28.6]} 11. Kb1 {[%clk 0:02:25.6]}
11... Rc8 {[%clk 0:02:26.4]} 12. Nd5 {[%clk 0:02:08.2]} 12... Bxd5 {[%clk
0:02:23.9]} 13. exd5 {[%clk 0:02:07.8]} 13... Nb6 {[%clk 0:02:23.3]} 14. Na5
{[%clk 0:01:47.7]} 14... Nbxd5 {[%clk 0:02:09.8]} 15. Nxb7 {[%clk 0:01:36.9]}
15... Qc7 {[%clk 0:02:09.3]} 16. Bxa6 {[%clk 0:01:31]} 16... Nxe3 {[%clk
0:01:47.5]} 17. Qxe3 {[%clk 0:01:28.9]} 17... Ra8 {[%clk 0:01:43.2]} 18. Qd3
{[%clk 0:00:52.3]} 18... O-O {[%clk 0:01:21.3]} 19. Qb5 {[%clk 0:00:37]} 19...
Rfb8 {[%clk 0:01:16.2]} 20. Rd3 {[%clk 0:00:33.9]} 20... Rxa6 {[%clk 0:01:14.4]}
21. Qxa6 {[%clk 0:00:33.3]} 21... Rxb7 {[%clk 0:01:14]} 22. Rb3 {[%clk
0:00:30.5]} 22... Rxb3 {[%clk 0:01:10.4]} 23. cxb3 {[%clk 0:00:30.5]} 23... Nd5
{[%clk 0:01:07.5]} 24. Rc1 {[%clk 0:00:29]} 24... Qd7 {[%clk 0:00:59]} 25. Qa8+
{[%clk 0:00:28.8]} 25... Kh7 {[%clk 0:00:43.9]} 26. Qxd5 {[%clk 0:00:29.7]} 1-0

[Event "Early-Titled-Tuesday-Blitz-January-23-2024"]
[Site "Chess.com"]
[Date "2024.01.23"]
[Round "1"]
[White "LeRoidesChampions"]
[Black "Viktor_Poddubnyi"]
[Result "1-0"]
[WhiteElo "2606"]
[BlackElo "2253"]
[TimeControl "180+1"]
[EndTime "8:06:19 PST"]
[Termination "LeRoidesChampions won by resignation"]

1. a3 {[%clk 0:02:59.5]} 1... g6 {[%clk 0:03:00]} 2. d4 {[%clk 0:02:53.3]} 2...
Bg7 {[%clk 0:03:00.4]} 3. Nf3 {[%clk 0:02:54.1]} 3... Nf6 {[%clk 0:02:59.8]} 4.
Bf4 {[%clk 0:02:54.4]} 4... d6 {[%clk 0:02:59.3]} 5. e3 {[%clk 0:02:54.8]} 5...
O-O {[%clk 0:02:59.9]} 6. c4 {[%clk 0:02:55.1]} 6... Nc6 {[%clk 0:03:00.2]} 7.
Nc3 {[%clk 0:02:55.4]} 7... Nd7 {[%clk 0:03:00.7]} 8. Bg3 {[%clk 0:02:53.9]}
8... e5 {[%clk 0:03:01.1]} 9. d5 {[%clk 0:02:54.3]} 9... Ne7 {[%clk 0:03:00.1]}
10. b4 {[%clk 0:02:53.7]} 10... h6 {[%clk 0:02:36.7]} 11. Be2 {[%clk 0:02:34.4]}
11... f5 {[%clk 0:02:33.7]} 12. h4 {[%clk 0:02:34.5]} 12... Nf6 {[%clk
0:02:29.6]} 13. Nd2 {[%clk 0:02:30.9]} 13... Bd7 {[%clk 0:02:18.2]} 14. e4
{[%clk 0:02:16.2]} 14... f4 {[%clk 0:02:07.6]} 15. Bh2 {[%clk 0:02:15.4]} 15...
a6 {[%clk 0:01:53.7]} 16. f3 {[%clk 0:02:15.1]} 16... c6 {[%clk 0:01:31.2]} 17.
Bg1 {[%clk 0:02:14.6]} 17... cxd5 {[%clk 0:01:27.9]} 18. cxd5 {[%clk 0:02:14.9]}
18... b5 {[%clk 0:01:26.6]} 19. Nb3 {[%clk 0:02:13.6]} 19... Rc8 {[%clk
0:01:25.2]} 20. Qd2 {[%clk 0:02:13.9]} 20... Nh5 {[%clk 0:01:21.9]} 21. Na5
{[%clk 0:02:13.8]} 21... Ng3 {[%clk 0:01:07.5]} 22. Rh2 {[%clk 0:02:11.8]} 22...
Qc7 {[%clk 0:00:53.5]} 23. Rc1 {[%clk 0:02:09]} 23... Qb8 {[%clk 0:00:53.9]} 24.
Bf2 {[%clk 0:02:04.8]} 24... Rc7 {[%clk 0:00:49.7]} 25. Na2 {[%clk 0:01:59.9]}
25... Rfc8 {[%clk 0:00:46.4]} 26. Nb3 {[%clk 0:01:53.2]} 26... Rxc1+ {[%clk
0:00:33.9]} 27. Naxc1 {[%clk 0:01:50.7]} 27... Rc7 {[%clk 0:00:31.3]} 28. Nc5
{[%clk 0:01:47.7]} 28... dxc5 {[%clk 0:00:23.9]} 29. d6 {[%clk 0:01:47.7]} 29...
Rb7 {[%clk 0:00:15.3]} 30. dxe7 {[%clk 0:01:45.3]} 30... cxb4 {[%clk 0:00:14.7]}
31. axb4 {[%clk 0:01:39.7]} 31... Be8 {[%clk 0:00:14.9]} 32. Bc5 {[%clk
0:01:39.6]} 32... Rd7 {[%clk 0:00:14.2]} 33. Qa2+ {[%clk 0:01:39.2]} 33... Bf7
{[%clk 0:00:13]} 34. Qxa6 {[%clk 0:01:36.7]} 34... Qe8 {[%clk 0:00:11.2]} 35.
Bxb5 {[%clk 0:01:35]} 1-0

[Event "Early-Titled-Tuesday-Blitz-January-23-2024"]
[Site "Chess.com"]
[Date "2024.01.23"]
[Round "1"]
[White "Aygehovit1992"]
[Black "leschebaza"]
[Result "1-0"]
[WhiteElo "2716"]
[BlackElo "2406"]
[TimeControl "180+1"]
[EndTime "8:06:21 PST"]
[Termination "Aygehovit1992 won by checkmate"]

1. e4 {[%clk 0:03:00.9]} 1... e6 {[%clk 0:02:59.9]} 2. d4 {[%clk 0:03:00.9]}
2... d5 {[%clk 0:02:56.9]} 3. Nc3 {[%clk 0:03:01.4]} 3... Nf6 {[%clk 0:02:51.5]}
4. e5 {[%clk 0:02:59.8]} 4... Nfd7 {[%clk 0:02:49.8]} 5. Nce2 {[%clk 0:03:00.1]}
5... c5 {[%clk 0:02:50.7]} 6. c3 {[%clk 0:03:00.3]} 6... Nc6 {[%clk 0:02:49.5]}
7. f4 {[%clk 0:03:00.3]} 7... Be7 {[%clk 0:02:50.4]} 8. Nf3 {[%clk 0:03:00.3]}
8... a6 {[%clk 0:02:47.4]} 9. h4 {[%clk 0:02:59.5]} 9... h6 {[%clk 0:02:43.2]}
10. h5 {[%clk 0:02:58.5]} 10... b5 {[%clk 0:02:39.2]} 11. Rh3 {[%clk 0:02:58.4]}
11... Bb7 {[%clk 0:02:32]} 12. Rg3 {[%clk 0:02:58.5]} 12... Bf8 {[%clk
0:02:29.4]} 13. a3 {[%clk 0:02:52]} 13... Qe7 {[%clk 0:01:50.1]} 14. Be3 {[%clk
0:02:45.7]} 14... O-O-O {[%clk 0:01:46.9]} 15. a4 {[%clk 0:02:43.7]} 15... b4
{[%clk 0:01:46.3]} 16. a5 {[%clk 0:02:40.1]} 16... Kb8 {[%clk 0:01:43.3]} 17.
Qa4 {[%clk 0:02:19.9]} 17... Rc8 {[%clk 0:01:27.7]} 18. Rc1 {[%clk 0:02:10.7]}
18... Qd8 {[%clk 0:01:20.9]} 19. cxb4 {[%clk 0:02:04.2]} 19... cxd4 {[%clk
0:01:08.1]} 20. Nexd4 {[%clk 0:02:01.9]} 20... Bxb4+ {[%clk 0:01:07.7]} 21. Kf2
{[%clk 0:02:02.3]} 21... Nxd4 {[%clk 0:00:49]} 22. Rxc8+ {[%clk 0:02:00.3]}
22... Qxc8 {[%clk 0:00:46.7]} 23. Nxd4 {[%clk 0:01:57.1]} 23... Bf8 {[%clk
0:00:35.3]} 24. b4 {[%clk 0:01:41.4]} 24... Rg8 {[%clk 0:00:27.2]} 25. Kg1
{[%clk 0:01:35.6]} 25... g6 {[%clk 0:00:26.7]} 26. Bf2 {[%clk 0:01:30.7]} 26...
Be7 {[%clk 0:00:22.5]} 27. hxg6 {[%clk 0:01:31]} 27... fxg6 {[%clk 0:00:23.4]}
28. Nxe6 {[%clk 0:01:26.7]} 28... Nxe5 {[%clk 0:00:23.6]} 29. Nc5 {[%clk
0:01:21.5]} 29... Bxc5 {[%clk 0:00:20.8]} 30. bxc5 {[%clk 0:01:18.9]} 30... Nc6
{[%clk 0:00:21.7]} 31. Rb3 {[%clk 0:01:18.5]} 31... Ka7 {[%clk 0:00:21.6]} 32.
Rb6 {[%clk 0:01:15.9]} 32... Rd8 {[%clk 0:00:17.3]} 33. Bxa6 {[%clk 0:01:14.7]}
33... Bxa6 {[%clk 0:00:18.2]} 34. Rxc6 {[%clk 0:01:14.3]} 34... Qg4 {[%clk
0:00:18.1]} 35. Rxa6+ {[%clk 0:01:12.3]} 35... Kxa6 {[%clk 0:00:18.3]} 36. Qc6+
{[%clk 0:01:11.2]} 36... Ka7 {[%clk 0:00:18.1]} 37. Qb6+ {[%clk 0:01:11.4]}
37... Ka8 {[%clk 0:00:18]} 38. Qxd8+ {[%clk 0:01:11.7]} 38... Qc8 {[%clk
0:00:18.1]} 39. Qxc8+ {[%clk 0:01:11.7]} 39... Ka7 {[%clk 0:00:18.4]} 40. c6+
{[%clk 0:01:11.5]} 40... d4 {[%clk 0:00:18.5]} 41. Bxd4# {[%clk 0:01:11.6]} 1-0

[Event "Early-Titled-Tuesday-Blitz-January-23-2024"]
[Site "Chess.com"]
[Date "2024.01.23"]
[Round "1"]
[White "FREDERICKtheMATE"]
[Black "Valy02chess"]
[Result "1-0"]
[WhiteElo "2562"]
[BlackElo "2146"]
[TimeControl "180+1"]
[EndTime "8:06:24 PST"]
[Termination "FREDERICKtheMATE won by resignation"]

1. d4 {[%clk 0:03:00.9]} 1... Nf6 {[%clk 0:02:58.6]} 2. Nf3 {[%clk 0:03:01.1]}
2... e6 {[%clk 0:02:55.5]} 3. c4 {[%clk 0:03:00.2]} 3... b6 {[%clk 0:02:52.8]}
4. a3 {[%clk 0:02:59]} 4... Ba6 {[%clk 0:02:49.5]} 5. Qc2 {[%clk 0:02:48.1]}
5... c5 {[%clk 0:02:48.6]} 6. g3 {[%clk 0:02:42.3]} 6... cxd4 {[%clk 0:02:47.8]}
7. Nxd4 {[%clk 0:02:42.3]} 7... Bb7 {[%clk 0:02:44.7]} 8. Nf3 {[%clk 0:02:42.1]}
8... Qc8 {[%clk 0:02:36.3]} 9. Bg2 {[%clk 0:02:37.9]} 9... Be7 {[%clk
0:02:31.6]} 10. O-O {[%clk 0:02:37.1]} 10... O-O {[%clk 0:02:30.9]} 11. Nbd2
{[%clk 0:02:37.3]} 11... d6 {[%clk 0:02:26.7]} 12. b3 {[%clk 0:02:35.9]} 12...
b5 {[%clk 0:02:23.3]} 13. Bb2 {[%clk 0:02:31.5]} 13... Nbd7 {[%clk 0:02:16.6]}
14. Rfd1 {[%clk 0:02:27.5]} 14... Nb6 {[%clk 0:02:05.5]} 15. Rac1 {[%clk
0:02:26.8]} 15... bxc4 {[%clk 0:02:04.5]} 16. Nxc4 {[%clk 0:02:26.6]} 16... Nxc4
{[%clk 0:02:03.4]} 17. Qxc4 {[%clk 0:02:27]} 17... Ba6 {[%clk 0:01:57.5]} 18.
Qc7 {[%clk 0:02:18.4]} 18... Qxc7 {[%clk 0:01:44.3]} 19. Rxc7 {[%clk 0:02:17.4]}
19... Bxe2 {[%clk 0:01:39.9]} 20. Rd2 {[%clk 0:02:16.8]} 20... Bd8 {[%clk
0:01:39.6]} 21. Rc1 {[%clk 0:02:10.6]} 21... Bxf3 {[%clk 0:01:34.6]} 22. Bxf3
{[%clk 0:02:10.3]} 22... Rb8 {[%clk 0:01:34.7]} 23. b4 {[%clk 0:02:09.5]} 23...
d5 {[%clk 0:01:34.6]} 24. Be5 {[%clk 0:02:08.9]} 24... Rb7 {[%clk 0:01:28.4]}
25. Rdc2 {[%clk 0:02:08.5]} 25... Nd7 {[%clk 0:01:26.9]} 26. Bd6 {[%clk
0:02:08.5]} 26... Re8 {[%clk 0:01:27.1]} 27. Rc8 {[%clk 0:02:05.6]} 27... f6
{[%clk 0:01:24]} 28. Be2 {[%clk 0:02:01.3]} 28... Kf7 {[%clk 0:01:17.8]} 29.
R8c6 {[%clk 0:01:42.5]} 29... Be7 {[%clk 0:01:11.5]} 30. Bc7 {[%clk 0:01:38.7]}
30... Ne5 {[%clk 0:00:28]} 31. Bxe5 {[%clk 0:01:20.3]} 31... fxe5 {[%clk
0:00:28.9]} 32. Rc7 {[%clk 0:01:17.8]} 32... Rxc7 {[%clk 0:00:20.1]} 33. Rxc7
{[%clk 0:01:17]} 33... Ra8 {[%clk 0:00:18.9]} 34. Ba6 {[%clk 0:01:12.7]} 34...
Ke8 {[%clk 0:00:18.3]} 35. Bb7 {[%clk 0:01:12.3]} 35... Rb8 {[%clk 0:00:18.6]}
36. Bc6+ {[%clk 0:01:12]} 36... Kd8 {[%clk 0:00:16.1]} 37. Rd7+ {[%clk 0:01:12]}
37... Ke8 {[%clk 0:00:14.9]} 38. Rb7+ {[%clk 0:01:11.9]} 38... Kd8 {[%clk
0:00:10.6]} 39. Rxb8+ {[%clk 0:01:12.1]} 39... Kc7 {[%clk 0:00:11]} 40. Re8
{[%clk 0:01:12.4]} 1-0

[Event "Early-Titled-Tuesday-Blitz-January-23-2024"]
[Site "Chess.com"]
[Date "2024.01.23"]
[Round "1"]
[White "kekic76"]
[Black "Dacean99"]
[Result "0-1"]
[WhiteElo "2321"]
[BlackElo "2639"]
[TimeControl "180+1"]
[EndTime "8:06:25 PST"]
[Termination "Dacean99 won on time"]

1. e4 {[%clk 0:03:00.9]} 1... c5 {[%clk 0:03:00]} 2. Nf3 {[%clk 0:03:00.8]} 2...
d6 {[%clk 0:02:59.9]} 3. d4 {[%clk 0:03:01.3]} 3... cxd4 {[%clk 0:03:00.8]} 4.
Nxd4 {[%clk 0:03:02.2]} 4... Nf6 {[%clk 0:03:01.4]} 5. Nc3 {[%clk 0:03:01.3]}
5... a6 {[%clk 0:03:01.7]} 6. f3 {[%clk 0:03:00.9]} 6... e5 {[%clk 0:02:59.1]}
7. Nb3 {[%clk 0:02:59.9]} 7... Be6 {[%clk 0:02:58.7]} 8. Bg5 {[%clk 0:02:56.2]}
8... Nbd7 {[%clk 0:02:54.3]} 9. Qd2 {[%clk 0:02:52.2]} 9... Be7 {[%clk 0:02:53]}
10. Be2 {[%clk 0:02:42.7]} 10... O-O {[%clk 0:02:50.5]} 11. Bxf6 {[%clk
0:02:37.8]} 11... Nxf6 {[%clk 0:02:49.8]} 12. Nd5 {[%clk 0:02:37.9]} 12... Nxd5
{[%clk 0:02:49.5]} 13. exd5 {[%clk 0:02:38.8]} 13... Bf5 {[%clk 0:02:50]} 14.
Na5 {[%clk 0:02:36.3]} 14... Bg5 {[%clk 0:02:40.1]} 15. Qb4 {[%clk 0:02:27.2]}
15... Qc7 {[%clk 0:02:24]} 16. c4 {[%clk 0:02:21.4]} 16... Be3 {[%clk
0:02:17.1]} 17. Qa3 {[%clk 0:01:30.2]} 17... Bd4 {[%clk 0:02:03.1]} 18. Nb3
{[%clk 0:01:06.8]} 18... Rfe8 {[%clk 0:01:57.8]} 19. Nd2 {[%clk 0:00:37]} 19...
b5 {[%clk 0:01:51.1]} 20. Rc1 {[%clk 0:00:22.3]} 20... b4 {[%clk 0:01:50.4]} 21.
Qb3 {[%clk 0:00:17.1]} 21... a5 {[%clk 0:01:47]} 22. Ne4 {[%clk 0:00:16.7]}
22... a4 {[%clk 0:01:43.3]} 23. Qxb4 {[%clk 0:00:09.2]} 23... Bxe4 {[%clk
0:01:30]} 24. fxe4 {[%clk 0:00:09.3]} 24... Reb8 {[%clk 0:01:29.8]} 25. Qd2
{[%clk 0:00:09.7]} 25... Rxb2 {[%clk 0:01:29.1]} 26. Rc2 {[%clk 0:00:08.9]}
26... Rab8 {[%clk 0:01:26.2]} 27. Bd3 {[%clk 0:00:06]} 27... Qe7 {[%clk
0:01:16.3]} 28. Rxb2 {[%clk 0:00:05]} 28... Rxb2 {[%clk 0:01:17.2]} 29. Qd1
{[%clk 0:00:05.5]} 29... Qh4+ {[%clk 0:01:11.2]} 30. g3 {[%clk 0:00:04.9]} 30...
Qf6 {[%clk 0:01:07.7]} 31. Rf1 {[%clk 0:00:04.9]} 31... Bf2+ {[%clk 0:01:04.8]}
0-1

[Event "Early-Titled-Tuesday-Blitz-January-23-2024"]
[Site "Chess.com"]
[Date "2024.01.23"]
[Round "1"]
[White "malakismayil"]
[Black "mary-sanna"]
[Result "1-0"]
[WhiteElo "2588"]
[BlackElo "2203"]
[TimeControl "180+1"]
[EndTime "8:06:25 PST"]
[Termination "malakismayil won on time"]

1. e4 {[%clk 0:03:00.9]} 1... c5 {[%clk 0:02:59.9]} 2. Nf3 {[%clk 0:03:01.3]}
2... Nc6 {[%clk 0:03:00]} 3. Bb5 {[%clk 0:03:01.4]} 3... e5 {[%clk 0:02:58.4]}
4. O-O {[%clk 0:02:55.9]} 4... Bd6 {[%clk 0:02:56.6]} 5. c3 {[%clk 0:02:53.8]}
5... a6 {[%clk 0:02:55]} 6. Bxc6 {[%clk 0:02:53.2]} 6... dxc6 {[%clk 0:02:52.9]}
7. d4 {[%clk 0:02:54.1]} 7... cxd4 {[%clk 0:02:45.8]} 8. cxd4 {[%clk 0:02:55]}
8... Bg4 {[%clk 0:02:24.6]} 9. dxe5 {[%clk 0:02:52.9]} 9... Bxf3 {[%clk
0:02:22.7]} 10. Qxd6 {[%clk 0:02:38]} 10... Bxe4 {[%clk 0:02:08.2]} 11. Qb4
{[%clk 0:02:37]} 11... Bxb1 {[%clk 0:01:53.3]} 12. Rxb1 {[%clk 0:02:35.1]} 12...
Qe7 {[%clk 0:01:52.8]} 13. Qc3 {[%clk 0:02:27.9]} 13... Nh6 {[%clk 0:01:38.7]}
14. Bxh6 {[%clk 0:02:25.8]} 14... gxh6 {[%clk 0:01:38.8]} 15. Rbd1 {[%clk
0:02:26.2]} 15... Rg8 {[%clk 0:01:37.5]} 16. f4 {[%clk 0:02:23.3]} 16... Rd8
{[%clk 0:01:28]} 17. Qb3 {[%clk 0:02:19.1]} 17... Qc5+ {[%clk 0:01:09.6]} 18.
Kh1 {[%clk 0:02:18.2]} 18... Rxd1 {[%clk 0:00:46.4]} 19. Qxd1 {[%clk 0:02:15.8]}
19... Ke7 {[%clk 0:00:41.3]} 20. f5 {[%clk 0:02:08.7]} 20... Rg5 {[%clk
0:00:14.8]} 21. Qb3 {[%clk 0:01:43.8]} 21... b5 {[%clk 0:00:12]} 22. f6+ {[%clk
0:01:41.5]} 22... Ke8 {[%clk 0:00:11]} 23. e6 {[%clk 0:01:42]} 23... Qd5 {[%clk
0:00:08.6]} 24. exf7+ {[%clk 0:01:33.6]} 24... Kxf7 {[%clk 0:00:07.9]} 25. Qh3
{[%clk 0:01:28]} 25... Qc4 {[%clk 0:00:06.7]} 26. Qd7+ {[%clk 0:01:24.1]} 26...
Kg6 {[%clk 0:00:06.3]} 27. Qe8+ {[%clk 0:01:13.5]} 27... Qf7 {[%clk 0:00:06.3]}
28. Qe4+ {[%clk 0:01:12.6]} 28... Kh5 {[%clk 0:00:05.7]} 29. Rf3 {[%clk
0:01:06.3]} 29... Rg4 {[%clk 0:00:02.2]} 30. Qf5+ {[%clk 0:01:04.9]} 1-0

[Event "Early-Titled-Tuesday-Blitz-January-23-2024"]
[Site "Chess.com"]
[Date "2024.01.23"]
[Round "1"]
[White "Iskusnyh"]
[Black "nicolochessit"]
[Result "1-0"]
[WhiteElo "2647"]
[BlackElo "2331"]
[TimeControl "180+1"]
[EndTime "8:06:28 PST"]
[Termination "Iskusnyh won by checkmate"]

1. d4 {[%clk 0:03:00.9]} 1... d5 {[%clk 0:02:57.2]} 2. c4 {[%clk 0:03:00.4]}
2... c6 {[%clk 0:02:57.2]} 3. Nf3 {[%clk 0:03:00.6]} 3... Nf6 {[%clk 0:02:57.1]}
4. e3 {[%clk 0:03:00.6]} 4... e6 {[%clk 0:02:56.8]} 5. b3 {[%clk 0:02:58.6]}
5... Bd6 {[%clk 0:02:56]} 6. Bd3 {[%clk 0:02:54.7]} 6... O-O {[%clk 0:02:55.3]}
7. Bb2 {[%clk 0:02:50.4]} 7... Nbd7 {[%clk 0:02:54.7]} 8. O-O {[%clk 0:02:48.2]}
8... Re8 {[%clk 0:02:48.5]} 9. Ne5 {[%clk 0:02:47.1]} 9... Ne4 {[%clk
0:02:28.8]} 10. f3 {[%clk 0:02:40]} 10... Bxe5 {[%clk 0:01:51.1]} 11. fxe4
{[%clk 0:02:36.8]} 11... Bf6 {[%clk 0:01:48.8]} 12. e5 {[%clk 0:02:28.6]} 12...
Be7 {[%clk 0:01:19.6]} 13. Qh5 {[%clk 0:01:52.3]} 13... g6 {[%clk 0:01:12.2]}
14. Qh3 {[%clk 0:01:52.1]} 14... dxc4 {[%clk 0:01:01.9]} 15. bxc4 {[%clk
0:01:33.1]} 15... Nxe5 {[%clk 0:00:58.3]} 16. Be2 {[%clk 0:01:23.9]} 16... Nd7
{[%clk 0:00:48.2]} 17. Rxf7 {[%clk 0:01:17.8]} 17... Kxf7 {[%clk 0:00:34.3]} 18.
Qxh7+ {[%clk 0:01:17.4]} 18... Kf8 {[%clk 0:00:34.6]} 19. Nd2 {[%clk 0:01:16.2]}
19... Bf6 {[%clk 0:00:14.8]} 20. Rf1 {[%clk 0:01:14.9]} 20... Re7 {[%clk
0:00:14.8]} 21. Qh8+ {[%clk 0:01:14.2]} 21... Kf7 {[%clk 0:00:13.6]} 22. Qxd8
{[%clk 0:01:13.7]} 22... Re8 {[%clk 0:00:10.1]} 23. Qc7 {[%clk 0:01:10.1]} 23...
Kg7 {[%clk 0:00:10.2]} 24. Ne4 {[%clk 0:01:09.4]} 24... Bd8 {[%clk 0:00:09.1]}
25. d5+ {[%clk 0:01:09.2]} 25... e5 {[%clk 0:00:08.6]} 26. Qd6 {[%clk
0:01:01.6]} 26... Be7 {[%clk 0:00:08.7]} 27. Bxe5+ {[%clk 0:00:59.1]} 27... Kh7
{[%clk 0:00:08.6]} 28. Rf7+ {[%clk 0:00:58.6]} 28... Kh6 {[%clk 0:00:03.2]} 29.
Bf4+ {[%clk 0:00:55.2]} 29... Bg5 {[%clk 0:00:01.2]} 30. Bxg5# {[%clk
0:00:55.4]} 1-0